bitfinex/quotes_BTCUSD_20240703
["timestamp","ask_amount","ask_price","bid_price","bid_amount"]
[1720024893865,1.10536867,60502.0,60501.0,0.009385]
[1720024894218,1.09936867,60502.0,60501.0,0.009385]
[1720024894420,1.11336867,60502.0,60501.0,0.009385]
[1720024895647,0.72937067,60502.0,60501.0,0.009385]
[1720024895849,0.68658977,60502.0,60501.0,0.009385]
[1720024898085,0.62885077,60502.0,60501.0,0.009385]
[1720024898683,0.56265077,60502.0,60501.0,0.009385]
[1720024898898,0.56265077,60502.0,60501.0,0.117685]
[1720024899297,0.17248095,60502.0,60501.0,0.25413646]
[1720024899499,0.03315284,60502.0,60501.0,0.245985]
[1720024899701,0.17246219,60502.0,60501.0,0.38243646]
[1720024899921,0.12566284,60502.0,60501.0,0.38243646]
[1720024900120,0.12566284,60502.0,60501.0,0.52110196]
[1720024900452,0.07995158,60502.0,60501.0,0.52110196]
[1720024901614,0.07995158,60502.0,60501.0,0.71140076]
[1720024902074,0.468,60520.0,60515.0,0.18233231]
[1720024902345,0.51621416,60519.0,60517.0,0.1289]
[1720024902552,0.1882,60521.0,60517.0,0.1289]
[1720024902792,0.03277901,60518.0,60517.0,0.1289]
[1720024905192,0.03277901,60518.0,60517.0,0.31123231]
[1720024905763,0.01,60518.0,60517.0,0.31123231]
[1720024906007,0.04231651,60518.0,60517.0,0.31123231]
[1720024906186,0.04231651,60518.0,60517.0,0.48417278]
[1720024906397,0.1882,60526.0,60520.0,0.13645146]
[1720024906605,0.8140967,60525.0,60521.0,0.13645146]
[1720024906798,0.62838248,60524.0,60522.0,0.13645146]
[1720024907003,0.39108248,60523.0,60522.0,0.13645146]
[1720024908055,0.39108248,60523.0,60522.0,0.13745146]
[1720024908171,0.39108248,60523.0,60522.0,0.52571696]
[1720024908172,0.03228348,60523.0,60522.0,0.52571696]
[1720024908376,0.03228348,60523.0,60522.0,0.47883611]
[1720024909019,0.03230994,60525.0,60522.0,0.47883611]
[1720024909209,0.03230994,60524.0,60523.0,0.09278465]
[1720024909594,0.17451594,60524.0,60523.0,0.22923611]
[1720024909793,0.03230994,60524.0,60523.0,0.27511696]
[1720024910038,0.17451594,60524.0,60523.0,0.09278465]
[1720024910239,0.48601094,60524.0,60523.0,0.09278465]
[1720024910442,0.46013594,60524.0,60523.0,0.09378465]
[1720024911140,0.46013594,60524.0,60523.0,0.23023611]
[1720024911141,0.18851594,60524.0,60523.0,0.23023611]
[1720024911925,0.17471594,60524.0,60523.0,0.23023611]
[1720024912130,0.17473918,60524.0,60523.0,0.23023611]
[1720024913167,0.17473918,60524.0,60523.0,0.23123611]
[1720024913366,0.18873918,60524.0,60523.0,0.23123611]
[1720024914857,0.18873918,60524.0,60523.0,0.27711696]
[1720024915254,0.06033318,60524.0,60523.0,0.27711696]
[1720024915475,0.06057392,60524.0,60523.0,0.27711696]
[1720024916837,0.18897992,60524.0,60523.0,0.27711696]
[1720024917056,0.06057392,60524.0,60523.0,0.23123611]
[1720024917235,0.48157992,60524.0,60523.0,0.23123611]
[1720024917435,0.35757992,60524.0,60523.0,0.27711696]
[1720024918016,0.06057392,60524.0,60523.0,0.27711696]
[1720024918739,0.06057392,60524.0,60523.0,0.75797158]
[1720024918740,0.06121537,60524.0,60523.0,0.75797158]
[1720024918954,0.341,60547.0,60536.0,0.13645146]
[1720024919072,0.341,60547.0,60541.0,0.09278465]
[1720024919073,0.0805619,60546.0,60541.0,0.09278465]
[1720024919313,0.15364,60550.0,60542.0,0.13645146]
[1720024919314,1.548666,60545.0,60542.0,0.13645146]
[1720024919690,1.548666,60545.0,60540.0,0.2518]
[1720024919691,0.710583,60549.0,60545.0,0.13645146]
[1720024919839,0.652084,60548.0,60546.0,0.13645146]
[1720024920058,0.903764,60549.0,60545.0,0.22923611]
[1720024920278,0.943764,60549.0,60547.0,0.13645146]
[1720024920653,0.943764,60549.0,60548.0,0.1093]
[1720024921060,0.943764,60549.0,60547.0,0.1425]
[1720024921278,0.943764,60549.0,60545.0,0.20208465]
[1720024921483,0.943764,60549.0,60547.0,0.001]
[1720024921484,0.952764,60549.0,60547.0,0.001]
[1720024921684,1.350614,60548.0,60547.0,0.001]
[1720024921885,1.503414,60548.0,60547.0,0.001]
[1720024922291,1.6637128,60548.0,60547.0,0.001]
[1720024922697,1.6867128,60548.0,60547.0,0.001]
[1720024922902,1.6867128,60548.0,60535.0,0.13645146]
[1720024923146,0.1882,60539.0,60535.0,0.13645146]
[1720024923343,0.1882,60539.0,60538.0,0.13645146]
[1720024923682,0.1882,60539.0,60538.0,0.18233231]
[1720024923891,0.1882,60539.0,60538.0,0.13645146]
[1720024924190,0.1882,60541.0,60538.0,0.13645146]
[1720024925420,0.1882,60541.0,60539.0,0.18233231]
[1720024925944,0.1882,60541.0,60534.0,0.09278465]
[1720024925945,0.1882,60541.0,60538.0,0.13645146]
[1720024926492,0.002,60539.0,60538.0,0.13645146]
[1720024926722,0.002,60539.0,60535.0,0.13645146]
[1720024927030,0.1882,60541.0,60535.0,0.13645146]
[1720024927176,0.1932,60541.0,60535.0,0.13645146]
[1720024927572,0.02878238,60540.0,60535.0,0.13645146]
[1720024927782,0.002,60539.0,60534.0,0.22923611]
[1720024928283,0.002,60539.0,60522.0,0.03]
[1720024928284,0.1882,60535.0,60528.0,0.2538]
[1720024928483,0.1882,60529.0,60528.0,0.2538]
[1720024928724,0.4107,60529.0,60528.0,0.2538]
[1720024929370,0.3307,60529.0,60528.0,0.2538]
[1720024929568,0.1882,60529.0,60528.0,0.2538]
[1720024929891,0.1882,60529.0,60528.0,0.13645146]
[1720024930231,0.1882,60529.0,60528.0,0.18433231]
[1720024930430,0.1882,60529.0,60528.0,0.13845146]
[1720024930833,0.1902,60529.0,60528.0,0.18233231]
[1720024931076,0.24593998,60542.0,60528.0,0.13845146]
[1720024931278,2.56616654,60541.0,60532.0,0.08015582]
[1720024931478,0.1882,60533.0,60532.0,0.08015582]
[1720024931658,0.21750454,60533.0,60532.0,0.08015582]
[1720024932416,0.21750454,60533.0,60528.0,0.002]
[1720024932562,0.85006854,60532.0,60528.0,0.002]
[1720024932762,0.61819854,60531.0,60528.0,0.002]
[1720024932968,0.02930454,60530.0,60528.0,0.13845146]
[1720024933163,0.001,60529.0,60528.0,0.18433231]
[1720024933384,0.1882,60533.0,60530.0,0.13645146]
[1720024933702,0.43324096,60532.0,60530.0,0.13645146]
[1720024933942,0.005,60532.0,60531.0,0.26248813]
[1720024934125,0.1882,60543.0,60536.0,0.13645146]
[1720024934331,1.12100099,60542.0,60535.0,0.13645146]
[1720024934539,0.1882,60543.0,60537.0,0.13645146]
[1720024934540,0.87413899,60541.0,60537.0,0.13645146]
[1720024934742,0.61745899,60540.0,60537.0,0.13645146]
[1720024934887,1.06521,60542.0,60537.0,0.13645146]
[1720024935088,0.84463,60541.0,60537.0,0.13645146]
[1720024935310,1.06521,60542.0,60537.0,0.13645146]
[1720024935510,1.06521,60542.0,60538.0,0.13645146]
[1720024935715,0.1882,60548.0,60540.0,0.13645146]
[1720024935917,2.033982,60547.0,60541.0,0.1037]
[1720024936448,0.1882,60548.0,60541.0,0.1037]
[1720024936663,2.247985,60547.0,60541.0,0.1037]
[1720024937063,2.254985,60547.0,60541.0,0.1047]
[1720024937286,1.994599,60546.0,60541.0,0.1057]
[1720024937418,1.994599,60546.0,60541.0,0.24215146]
[1720024938661,0.506014,60545.0,60544.0,0.41171696]
[1720024938803,0.015,60547.0,60544.0,0.41171696]
[1720024938804,0.494784,60546.0,60545.0,0.27511696]
[1720024939016,0.015,60547.0,60546.0,0.18233231]
[1720024939527,0.007,60547.0,60546.0,0.18233231]
[1720024939720,0.007,60547.0,60546.0,0.13645146]
[1720024940312,0.931921,60547.0,60541.0,0.001]
[1720024940462,0.1882,60542.0,60536.0,0.38775146]
[1720024940782,1.082698,60541.0,60537.0,0.13645146]
[1720024940985,1.069353,60541.0,60537.0,0.13645146]
[1720024941285,0.1882,60542.0,60538.0,0.13645146]
[1720024941286,0.347799,60540.0,60538.0,0.13645146]
[1720024941620,0.347799,60540.0,60536.0,0.2513]
[1720024941621,0.008,60547.0,60544.0,0.13645146]
[1720024941812,0.264183,60546.0,60544.0,0.13645146]
[1720024942656,0.02090669,60545.0,60544.0,0.13645146]
[1720024943188,0.27750269,60545.0,60544.0,0.13645146]
[1720024943386,0.256596,60545.0,60544.0,0.13645146]
[1720024943725,0.0209011,60545.0,60544.0,0.13645146]
[1720024944074,0.2774971,60545.0,60544.0,0.13745146]
[1720024944270,0.02092006,60545.0,60544.0,0.13645146]
[1720024944584,0.02092006,60545.0,60544.0,0.13745146]
[1720024944927,0.02092006,60545.0,60544.0,0.13645146]
[1720024945102,0.36931606,60545.0,60544.0,0.38095146]
[1720024945425,0.37431606,60545.0,60544.0,0.38095146]
[1720024945627,0.38231606,60545.0,60544.0,0.38195146]
[1720024945987,0.37431606,60545.0,60544.0,0.38095146]
[1720024946413,0.36931606,60545.0,60544.0,0.38095146]
[1720024946634,0.36939525,60545.0,60544.0,0.38095146]
[1720024947130,0.02099925,60545.0,60544.0,0.42683231]
[1720024947289,0.008,60545.0,60544.0,0.42783231]
[1720024947492,0.02899024,60545.0,60544.0,0.42783231]
[1720024948106,1.44956024,60545.0,60544.0,0.001]
[1720024948312,1.54805824,60545.0,60544.0,0.001]
[1720024948509,1.85361624,60545.0,60544.0,0.001]
[1720024948710,1.24068324,60545.0,60544.0,0.001]
[1720024948932,0.96818124,60545.0,60544.0,0.001]
[1720024949138,0.92520324,60545.0,60544.0,0.001]
[1720024950920,0.82713024,60545.0,60544.0,0.001]
[1720024952257,0.82713024,60545.0,60544.0,0.13745146]
[1720024952459,0.86093724,60545.0,60544.0,0.001]
[1720024952660,0.84797124,60545.0,60544.0,0.001]
[1720024953108,0.826981,60545.0,60544.0,0.001]
[1720024953315,0.22360677,60545.0,60544.0,0.38845146]
[1720024954901,1.95890577,60545.0,60544.0,0.001]
[1720024955096,2.19706577,60545.0,60544.0,0.001]
[1720024955301,2.23706577,60545.0,60544.0,0.001]
[1720024955593,2.33007473,60545.0,60544.0,0.001]
[1720024955826,2.42497473,60545.0,60544.0,0.001]
[1720024956046,2.60602327,60545.0,60544.0,0.001]
[1720024956286,2.76632207,60545.0,60544.0,0.001]
[1720024956514,2.74457354,60545.0,60544.0,0.001]
[1720024956767,3.17262768,60545.0,60544.0,0.001]
[1720024956961,3.17364833,60545.0,60544.0,0.001]
[1720024957159,3.16864833,60545.0,60544.0,0.001]
[1720024957356,3.16864833,60545.0,60544.0,0.002]
[1720024957357,3.17564833,60545.0,60544.0,0.002]
[1720024959466,3.17564833,60545.0,60544.0,0.001]
[1720024959467,3.26686394,60545.0,60544.0,0.001]
[1720024959808,3.23148257,60545.0,60544.0,0.002]
[1720024960033,4.947023,60545.0,60544.0,0.002]
[1720024961462,0.16354854,60534.0,60524.0,0.1135]
[1720024961667,0.1124,60538.0,60524.0,0.1135]
[1720024961668,0.1891,60525.0,60524.0,0.1135]
[1720024961931,0.20984655,60525.0,60524.0,0.1135]
[1720024962354,0.20984655,60525.0,60524.0,0.08015582]
[1720024962547,0.20984655,60525.0,60524.0,0.33895582]
[1720024962750,0.20953962,60525.0,60524.0,0.33895582]
[1720024963395,0.21353962,60525.0,60524.0,0.33987982]
[1720024963729,0.20953962,60525.0,60524.0,0.33987982]
[1720024963947,0.22353962,60525.0,60524.0,0.33987982]
[1720024964369,0.20953962,60525.0,60524.0,0.33987982]
[1720024964925,0.20953962,60525.0,60524.0,0.259724]
[1720024965125,0.02043962,60525.0,60524.0,0.259724]
[1720024965346,1.01905562,60525.0,60524.0,0.259724]
[1720024965852,0.52401362,60525.0,60524.0,0.259724]
[1720024966067,0.52878662,60525.0,60524.0,0.259724]
[1720024966660,0.29972562,60525.0,60524.0,0.259724]
[1720024968788,0.30372562,60525.0,60524.0,0.259724]
[1720024969302,0.278513,60525.0,60524.0,0.259724]
[1720024969468,0.30377585,60525.0,60524.0,0.259724]
[1720024969686,0.278513,60525.0,60524.0,0.259724]
[1720024969873,0.3038214,60525.0,60524.0,0.259724]
[1720024970274,0.3038214,60525.0,60524.0,0.25423419]
[1720024971597,1.0973554,60525.0,60524.0,0.25423419]
[1720024971944,1.0973554,60525.0,60524.0,0.000924]
[1720024972150,1.0769084,60525.0,60524.0,0.000924]
[1720024972347,1.0516,60525.0,60524.0,0.000924]
[1720024972553,1.0516,60525.0,60511.0,0.09278465]
[1720024972554,0.2,60519.0,60511.0,0.09278465]
[1720024972854,0.1891,60512.0,60511.0,0.09278465]
[1720024973123,0.21440937,60512.0,60511.0,0.09278465]
[1720024973302,0.21440937,60512.0,60511.0,0.33603611]
[1720024973884,0.21440937,60512.0,60511.0,0.38191696]
[1720024974324,0.21940937,60512.0,60511.0,0.38191696]
[1720024975570,0.1941,60512.0,60511.0,0.38191696]
[1720024975852,0.22013989,60512.0,60511.0,0.38491696]
[1720024976151,0.03103989,60512.0,60511.0,0.38491696]
[1720024976997,0.03103989,60512.0,60511.0,0.33903611]
[1720024977204,0.03103989,60512.0,60511.0,0.38491696]
[1720024977472,0.03103989,60512.0,60511.0,0.69081576]
[1720024977669,0.1891,60525.0,60523.0,0.13645146]
[1720024977970,0.1489,60537.0,60521.0,0.09278465]
[1720024977971,0.543528,60524.0,60521.0,0.09278465]
[1720024978146,0.2,60529.0,60521.0,0.27511696]
[1720024978348,1.161145,60528.0,60521.0,0.22923611]
[1720024978653,0.1891,60526.0,60521.0,0.09278465]
[1720024978847,0.790431,60525.0,60521.0,0.09278465]
[1720024979253,0.802431,60525.0,60521.0,0.09278465]
[1720024979649,0.647628,60524.0,60521.0,0.09278465]
[1720024979854,0.3569,60523.0,60521.0,0.09278465]
[1720024980217,0.633628,60524.0,60521.0,0.27511696]
[1720024980417,0.633628,60524.0,60521.0,0.09278465]
[1720024980841,0.014,60524.0,60521.0,0.09278465]
[1720024981121,0.3769,60523.0,60521.0,0.09278465]
[1720024983192,1.054314,60525.0,60521.0,0.09278465]
[1720024983382,0.013,60523.0,60521.0,0.09278465]
[1720024983601,0.023,60523.0,60521.0,0.09278465]
[1720024984170,0.01,60523.0,60521.0,0.09278465]
[1720024985676,0.02186919,60522.0,60521.0,0.09278465]
[1720024987257,0.03086919,60522.0,60521.0,0.09278465]
[1720024987459,0.03086919,60522.0,60521.0,0.27511696]
[1720024987726,0.04290135,60522.0,60521.0,0.27511696]
[1720024988828,0.04290135,60522.0,60521.0,0.09278465]
[1720024989044,0.04290135,60522.0,60521.0,0.22923611]
[1720024989208,0.04290135,60522.0,60521.0,0.09278465]
[1720024990829,0.04290135,60522.0,60521.0,0.27511696]
[1720024991114,0.23200135,60522.0,60521.0,0.27511696]
[1720024991485,0.04290135,60522.0,60521.0,0.35527278]
[1720024994592,0.021,60522.0,60521.0,0.35527278]
[1720024994807,0.04316898,60522.0,60521.0,0.35527278]
[1720024995013,0.04316898,60522.0,60521.0,0.60707278]
[1720024995215,0.3005988,60536.0,60521.0,0.60707278]
[1720024995216,0.16366572,60533.0,60521.0,0.60707278]
[1720024995433,0.1891,60527.0,60526.0,0.13645146]
[1720024995632,0.1891,60527.0,60525.0,0.13645146]
[1720024995633,0.650498,60527.0,60525.0,0.13645146]
[1720024995869,0.236981,60526.0,60525.0,0.13645146]
[1720024996811,0.236981,60526.0,60524.0,0.13645146]
[1720024997254,0.250981,60526.0,60525.0,0.13645146]
[1720024998182,0.264981,60526.0,60525.0,0.13645146]
[1720024998616,0.264981,60526.0,60524.0,0.13645146]
[1720024998780,0.613845,60525.0,60524.0,0.13645146]
[1720024998987,0.593845,60525.0,60524.0,0.18233231]
[1720024999192,0.36972,60525.0,60524.0,0.18233231]
[1720024999590,0.36972,60525.0,60524.0,0.37815146]
[1720024999791,0.21242,60525.0,60524.0,0.42403231]
[1720025000047,0.21242,60525.0,60524.0,0.2417]
[1720025000396,0.963017,60526.0,60524.0,0.2417]
[1720025000591,0.714036,60526.0,60524.0,0.2417]
[1720025000810,0.750122,60526.0,60524.0,0.2417]
[1720025001013,0.757122,60526.0,60525.0,0.001]
[1720025001593,0.755122,60526.0,60524.0,0.2427]
[1720025001824,1.145705,60525.0,60524.0,0.001]
[1720025003085,1.145705,60525.0,60521.0,0.09288465]
[1720025003291,0.1891,60522.0,60521.0,0.09288465]
[1720025003493,0.20284451,60522.0,60521.0,0.09288465]
[1720025004814,0.20284451,60522.0,60521.0,0.09388465]
[1720025005622,0.20284451,60522.0,60521.0,0.09398465]
[1720025006266,0.20484451,60522.0,60521.0,0.09398465]
[1720025006849,0.20484483,60522.0,60521.0,0.09398465]
[1720025007896,0.09144483,60522.0,60521.0,0.09398465]
[1720025008681,0.14774266,60522.0,60521.0,0.09398465]
[1720025008907,0.23104266,60522.0,60521.0,0.0012]
[1720025009236,0.23104266,60522.0,60512.0,0.1174141]
[1720025009237,0.30424266,60522.0,60512.0,0.000924]
[1720025009373,0.0757,60515.0,60512.0,0.000924]
[1720025009574,1.40271383,60514.0,60512.0,0.000924]
[1720025009818,1.43778983,60513.0,60512.0,0.000924]
[1720025010027,1.170175,60513.0,60512.0,0.000924]
[1720025010255,1.25947168,60513.0,60512.0,0.000924]
[1720025010461,1.25947183,60513.0,60512.0,0.000924]
[1720025011094,0.0832,60512.0,60497.0,0.12911893]
[1720025011429,0.1894,60504.0,60497.0,0.12911893]
[1720025011647,0.1894,60502.0,60497.0,0.12911893]
[1720025011853,1.38325383,60502.0,60497.0,0.12911893]
[1720025012054,1.38487383,60502.0,60497.0,0.12911893]
[1720025012302,1.34348383,60502.0,60492.0,0.1256751]
[1720025012523,1.34348383,60502.0,60493.0,0.03633428]
[1720025012524,1.36648383,60502.0,60493.0,0.03633428]
[1720025012723,1.36676094,60502.0,60493.0,0.03633428]
[1720025013278,1.35238817,60502.0,60493.0,0.03633428]
[1720025013480,1.37908202,60502.0,60493.0,0.03633428]
[1720025014070,2.84573702,60502.0,60493.0,0.03633428]
[1720025014496,2.84082902,60502.0,60501.0,0.011185]
[1720025014913,2.83282902,60502.0,60501.0,0.010185]
[1720025015728,2.84682902,60502.0,60501.0,0.011185]
[1720025016552,2.74521111,60502.0,60501.0,0.011185]
[1720025016758,2.77181883,60502.0,60501.0,0.011185]
[1720025017208,2.77171883,60502.0,60501.0,0.011185]
[1720025018259,1.64861783,60502.0,60501.0,0.011185]
[1720025018469,1.40380283,60502.0,60501.0,0.011185]
[1720025018676,1.21094083,60502.0,60501.0,0.011185]
[1720025019732,1.18423311,60502.0,60501.0,0.011185]
[1720025019933,1.21087147,60502.0,60501.0,0.011185]
[1720025020139,1.21087149,60502.0,60501.0,0.011185]
[1720025020342,1.21096462,60502.0,60501.0,0.011185]
[1720025020772,1.21106462,60502.0,60501.0,0.00718281]
[1720025021637,1.21106462,60502.0,60501.0,0.11848281]
[1720025021638,0.97360362,60502.0,60501.0,0.11848281]
[1720025021814,0.89534762,60502.0,60501.0,0.11848281]
[1720025022023,0.89507051,60502.0,60501.0,0.11848281]
[1720025022405,0.88107051,60502.0,60501.0,0.11748281]
[1720025022829,0.88907051,60502.0,60501.0,0.11848281]
[1720025023031,0.89285075,60502.0,60501.0,0.11848281]
[1720025023606,0.89285075,60502.0,60501.0,0.11595794]
[1720025024269,0.87885075,60502.0,60501.0,0.11495794]
[1720025024468,0.68975075,60502.0,60501.0,0.11495794]
[1720025024826,0.89015075,60502.0,60501.0,0.11595794]
[1720025024975,0.88215075,60502.0,60501.0,0.11495794]
[1720025025203,0.68175075,60502.0,60501.0,0.11395794]
[1720025025548,0.88015075,60502.0,60501.0,0.11495794]
[1720025026252,0.849639,60502.0,60501.0,0.11495794]
[1720025026468,0.88050364,60502.0,60501.0,0.11495794]
[1720025027627,0.84948364,60502.0,60501.0,0.11495794]
[1720025029439,0.818619,60502.0,60501.0,0.11495794]
[1720025029663,0.84981091,60502.0,60501.0,0.11495794]
[1720025031039,0.84981091,60502.0,60501.0,0.00365794]
[1720025031854,0.73621091,60502.0,60501.0,0.00365794]
[1720025032867,0.73586349,60502.0,60501.0,0.00365794]
[1720025033269,0.705019,60502.0,60501.0,0.00365794]
[1720025033480,0.73586299,60502.0,60501.0,0.00365794]
[1720025035439,0.66006299,60502.0,60501.0,0.5301749]
[1720025035644,0.73586299,60502.0,60501.0,0.5301749]
[1720025035916,0.38409157,60502.0,60501.0,0.5301749]
[1720025036117,0.11569257,60502.0,60501.0,0.5301749]
[1720025038312,0.03989257,60502.0,60501.0,0.5301749]
[1720025038710,0.11569257,60502.0,60501.0,0.5301749]
[1720025039089,0.085,60502.0,60501.0,0.5301749]
[1720025039293,0.11535632,60502.0,60501.0,0.5301749]
[1720025040129,0.03955632,60502.0,60501.0,0.5301749]
[1720025040365,0.03955632,60502.0,60501.0,0.72680798]
[1720025040567,0.11535632,60502.0,60501.0,0.72680798]
[1720025041058,0.03955632,60502.0,60501.0,0.75680798]
[1720025041266,0.11535632,60502.0,60501.0,0.75680798]
[1720025041742,0.03955632,60502.0,60501.0,0.75680798]
[1720025041900,0.0092,60502.0,60501.0,0.75680798]
[1720025042755,0.0092,60502.0,60501.0,0.75580798]
[1720025042959,0.0032,60502.0,60501.0,0.75580798]
[1720025043168,0.0002,60502.0,60501.0,0.75580798]
[1720025043371,0.16450572,60527.0,60508.0,0.09633428]
[1720025043372,0.0758,60509.0,60508.0,0.09633428]
[1720025043601,0.0758,60509.0,60508.0,0.74235004]
[1720025043932,0.00084,60527.0,60522.0,0.13645146]
[1720025044140,0.67955707,60526.0,60525.0,0.08015582]
[1720025044356,0.75535707,60526.0,60525.0,0.08015582]
[1720025044769,0.10615867,60526.0,60525.0,0.26248813]
[1720025045124,0.46814167,60526.0,60525.0,0.26248813]
[1720025045322,0.10492498,60526.0,60525.0,0.26248813]
[1720025045467,0.02912498,60526.0,60525.0,0.35527278]
[1720025045807,0.00084,60527.0,60525.0,0.35527278]
[1720025045808,0.00084,60527.0,60526.0,0.38881696]
[1720025046007,0.00084,60527.0,60526.0,0.58545004]
[1720025047304,0.20004,60527.0,60526.0,0.58645004]
[1720025048011,0.20704,60527.0,60526.0,0.58745004]
[1720025049658,0.36334,60527.0,60526.0,0.002]
[1720025049870,0.38637768,60527.0,60526.0,0.002]
[1720025054316,0.39734544,60527.0,60526.0,0.002]
[1720025057497,0.39734544,60527.0,60518.0,0.1144]
[1720025057498,0.55885106,60527.0,60515.0,0.09278465]
[1720025057666,0.023,60526.0,60515.0,0.09278465]
[1720025057892,0.1892,60516.0,60515.0,0.09278465]
[1720025058045,0.819077,60516.0,60515.0,0.09278465]
[1720025058385,0.87322309,60516.0,60514.0,0.08015582]
[1720025058562,0.82546309,60515.0,60514.0,0.08015582]
[1720025058955,0.82546309,60515.0,60514.0,0.17294047]
[1720025059146,0.82546309,60515.0,60514.0,0.08015582]
[1720025059336,0.88006309,60515.0,60514.0,0.08015582]
[1720025060347,0.82546309,60515.0,60514.0,0.08015582]
[1720025060554,0.82546309,60515.0,60509.0,0.12911893]
[1720025060753,0.1892,60511.0,60509.0,0.09278465]
[1720025060951,0.90871009,60510.0,60509.0,0.12911893]
[1720025061216,0.87907909,60510.0,60509.0,0.12911893]
[1720025061392,0.55527509,60510.0,60509.0,0.31145124]
[1720025061598,0.31717509,60510.0,60509.0,0.26557039]
[1720025061799,0.26594609,60510.0,60509.0,0.31145124]
[1720025062166,0.26594609,60510.0,60509.0,0.31245124]
[1720025063636,0.05414609,60510.0,60509.0,0.31245124]
[1720025063838,0.1942,60511.0,60510.0,0.18233231]
[1720025064138,0.24371773,60511.0,60510.0,0.73385004]
[1720025065547,0.24371773,60511.0,60510.0,0.73477404]
[1720025065750,0.24671773,60511.0,60510.0,0.73477404]
[1720025066893,0.25271773,60511.0,60510.0,0.73477404]
[1720025067103,0.25286471,60511.0,60510.0,0.73477404]
[1720025067296,0.06366471,60511.0,60510.0,0.76477404]
[1720025067425,0.01930994,60511.0,60510.0,0.76477404]
[1720025067628,0.009,60511.0,60510.0,0.76477404]
[1720025068449,0.006,60511.0,60510.0,0.76477404]
[1720025068855,0.007,60511.0,60510.0,0.77277404]
[1720025070283,0.001,60511.0,60510.0,0.77277404]
[1720025070695,0.002,60511.0,60510.0,0.77477404]
[1720025070905,0.1892,60523.0,60522.0,0.12278465]
[1720025071108,0.1892,60523.0,60522.0,0.42468345]
[1720025071109,0.22600425,60523.0,60522.0,0.42468345]
[1720025071326,0.22600425,60523.0,60522.0,0.53898345]
[1720025071638,0.03680425,60523.0,60522.0,0.75765004]
[1720025071937,0.00084,60526.0,60525.0,0.56735124]
[1720025072113,0.03734661,60526.0,60525.0,0.72765004]
[1720025072313,0.03734661,60526.0,60525.0,0.75765004]
[1720025072314,0.00084,60526.0,60525.0,0.75765004]
[1720025072534,0.00084,60526.0,60525.0,0.72765004]
[1720025073319,0.00084,60526.0,60525.0,0.75765004]
[1720025074020,0.00184,60526.0,60525.0,0.75765004]
[1720025078661,0.00184,60526.0,60525.0,1.05765004]
[1720025079415,0.00284,60526.0,60525.0,1.06565004]
[1720025080392,0.00184,60526.0,60525.0,1.05765004]
[1720025080617,0.00084,60526.0,60525.0,1.05765004]
[1720025080885,0.00284,60526.0,60525.0,1.07365004]
[1720025081183,0.00194,60526.0,60525.0,1.07165004]
[1720025081550,0.00294,60526.0,60525.0,0.77365004]
[1720025082201,0.00294,60526.0,60525.0,1.07365004]
[1720025083168,0.1892,60541.0,60540.0,0.31145124]
[1720025083383,0.00084,60545.0,60544.0,0.31145124]
[1720025083639,0.00084,60545.0,60544.0,0.76095004]
[1720025084182,0.00084,60545.0,60544.0,0.76085004]
[1720025084588,0.00084,60545.0,60544.0,0.76285004]
[1720025085495,0.00084,60545.0,60544.0,0.76085004]
[1720025085696,0.00184,60545.0,60544.0,0.76285004]
[1720025087153,0.00184,60545.0,60544.0,0.77185004]
[1720025087648,0.00184,60545.0,60544.0,0.77175004]
[1720025088646,0.00184,60545.0,60544.0,0.77165004]
[1720025091775,0.00184,60545.0,60544.0,0.77155004]
[1720025094379,0.00184,60545.0,60544.0,0.76255004]
[1720025094681,0.00084,60545.0,60544.0,0.77145004]
[1720025094836,0.00184,60545.0,60544.0,0.78145004]
[1720025095275,0.00184,60545.0,60544.0,0.78155004]
[1720025096964,0.00184,60545.0,60544.0,0.56971773]
[1720025097163,0.00184,60545.0,60544.0,0.78155004]
[1720025097733,0.04565172,60561.0,60555.0,0.13645146]
[1720025097927,0.04565172,60561.0,60558.0,0.17294047]
[1720025098180,0.1892,60559.0,60558.0,0.17294047]
[1720025098344,0.1892,60559.0,60558.0,0.35477278]
[1720025098763,0.1892,60559.0,60558.0,0.30939193]
[1720025099175,0.1892,60559.0,60558.0,0.35477278]
[1720025099574,0.1892,60559.0,60558.0,0.35467278]
[1720025099954,0.1892,60559.0,60558.0,0.35457278]
[1720025100151,0.969054,60559.0,60558.0,0.09358465]
[1720025100381,1.638337,60559.0,60558.0,0.23103611]
[1720025100553,1.292109,60559.0,60558.0,0.31119193]
[1720025100774,1.337809,60559.0,60558.0,0.31119193]
[1720025100983,1.337809,60559.0,60558.0,0.17474047]
[1720025101178,1.337809,60559.0,60558.0,0.17374047]
[1720025101386,1.36753949,60559.0,60558.0,0.08115582]
[1720025101589,1.36803949,60559.0,60558.0,0.001]
[1720025101933,0.0457,60553.0,60549.0,0.22903611]
[1720025102141,0.1892,60550.0,60549.0,0.27441696]
[1720025102509,0.21877375,60550.0,60549.0,0.27441696]
[1720025102712,0.21877375,60550.0,60549.0,0.09248465]
[1720025103077,0.21877375,60550.0,60549.0,0.09238465]
[1720025103288,0.21884836,60550.0,60549.0,0.09238465]
[1720025103490,0.21884836,60550.0,60548.0,0.13645146]
[1720025103689,0.0296485,60549.0,60546.0,0.12871893]
[1720025103876,0.1892,60550.0,60549.0,0.003]
[1720025104075,0.26454862,60550.0,60549.0,0.09638465]
[1720025104529,0.26454862,60550.0,60549.0,0.004]
[1720025104702,0.26504862,60550.0,60549.0,0.003]
[1720025105076,0.26454862,60550.0,60549.0,0.003]
[1720025105346,0.26454862,60550.0,60548.0,0.13645146]
[1720025105552,0.02964862,60549.0,60548.0,0.13645146]
[1720025106305,0.2399,60550.0,60549.0,0.001]
[1720025106509,0.27418473,60550.0,60549.0,0.18273231]
[1720025106724,0.26918473,60550.0,60549.0,0.18183231]
[1720025107130,0.22348473,60550.0,60549.0,0.27421696]
[1720025107330,0.22348473,60550.0,60549.0,0.27411696]
[1720025107531,0.22348473,60550.0,60549.0,0.22883611]
[1720025107747,0.22348473,60550.0,60549.0,0.27411696]
[1720025108165,0.22348473,60550.0,60549.0,0.22883611]
[1720025108911,0.22748473,60550.0,60549.0,0.35527278]
[1720025109078,0.22348473,60550.0,60549.0,0.35527278]
[1720025109481,0.22348473,60550.0,60549.0,0.35427278]
[1720025109656,0.22305935,60550.0,60549.0,0.35427278]
[1720025109864,0.22305935,60550.0,60549.0,0.31099193]
[1720025110066,0.22706395,60550.0,60549.0,0.31099193]
[1720025110467,0.22306395,60550.0,60549.0,0.31099193]